fUSD/lending_fUSD_20260202
["ID","MTS","AMOUNT","RATE_DAILY","PERIOD"]
[404355212,1770073841064,-250.0,0.00010615,2]
[404355213,1770073841073,-250.0,0.00010615,2]
[404355214,1770073841084,-250.0,0.00010615,2]
[404355215,1770073841094,-250.0,0.00010615,2]
[404355216,1770073841103,-250.0,0.00010615,2]
[404355217,1770073841113,-209.40437684,0.00010615,2]
[404355218,1770073841123,-250.0,0.00010615,2]
[404355219,1770073841132,-209.40437684,0.00010615,2]
[404355220,1770073841140,-250.0,0.00010615,2]
[404355221,1770073841149,-250.0,0.00010615,2]
[404355222,1770073841159,-250.0,0.00010615,2]
[404355223,1770073841168,-209.40437684,0.00010615,2]
[404355224,1770073841178,-2000.0,0.00010656,2]
[404355225,1770073841187,-1006.04407484,0.00010656,2]
[404355226,1770073841196,-2000.0,0.00010656,2]
[404355227,1770073841205,-2000.0,0.00010656,2]
[404355228,1770073841214,-1666.54524169,0.00010656,2]
[404355229,1770073841223,-1879.40909817,0.00010656,2]
[404355230,1770073841232,-2000.0,0.00010656,2]
[404355231,1770073841241,-2000.0,0.00010656,2]
[404355232,1770073841250,-2000.0,0.00010656,2]
[404355233,1770073841259,-217.15233878,0.0001067,2]
[404355234,1770073841268,-2351.0,0.00010682,2]
[404355235,1770073841278,-587.0,0.00010682,2]
[404355236,1770073841287,-443.8,0.00010684,2]
[404355237,1770073841296,-225.18697532,0.00010725,2]
[404355238,1770073841306,-233.51889341,0.0001078,2]
[404355239,1770073841316,-433.0,0.00010803,2]
[404355240,1770073841325,-587.0,0.00010803,2]
[404355241,1770073841335,-242.15909246,0.00010835,2]
[404355242,1770073841344,-251.11897888,0.0001089,2]
[404355243,1770073841353,-5234.64119351,0.000109,2]
[404355244,1770073841362,-5234.64119348,0.000109,2]
[404355245,1770073841371,-189.86746418,0.00010917,2]
[404355246,1770073841380,-260.4103811,0.00010945,2]
[404355247,1770073841390,-500.0,0.00010959,2]
[404355248,1770073841402,-270.0455652,0.00011,2]
[404355249,1770073841411,-341.76143552,0.00011044,2]
[404355250,1770073841421,-280.03725112,0.00011055,2]
[404355251,1770073841430,-500.0,0.00011096,2]
[404355252,1770073841441,-200.0,0.00011096,2]
[404355253,1770073841450,-200.0,0.00011096,2]
[404355254,1770073841460,-66161.95529157,0.00011099,2]
[404355255,1770073841470,-66161.95529155,0.00011099,2]
[404355256,1770073841479,-66161.95529155,0.00011099,2]
[404355257,1770073841488,-66161.95529155,0.00011099,2]
[404355258,1770073841497,-66161.95529155,0.00011099,2]
[404355259,1770073841506,-66161.95529155,0.00011099,2]
[404355260,1770073841516,-66161.95529155,0.00011099,2]
[404355261,1770073841525,-66161.95529155,0.00011099,2]
[404355262,1770073841535,-66161.95529155,0.00011099,2]
[404355263,1770073841544,-66161.95529155,0.00011099,2]
[404355264,1770073841553,-290.39862941,0.0001111,2]
[404355265,1770073841563,-443.8,0.00011149,2]
[404355266,1770073841572,-151.0,0.00011163,2]
[404355267,1770073841581,-181.08010149,0.00011163,2]
[404355268,1770073841591,-1481.23780761,0.00011163,2]
[404355269,1770073841600,-276.99112212,0.00011163,2]
[404355270,1770073841610,-217.15233878,0.00011163,2]
[404355271,1770073841619,-301.1433787,0.00011165,2]
[404355272,1770073841628,-956.63226471,0.00011204,2]
[404355273,1770073841637,-1309.50611672,0.00011204,2]
[404355274,1770073841648,-2500.0,0.00011204,2]
[404355275,1770073841659,-2500.0,0.00011204,2]
[404355276,1770073841669,-1518.20605405,0.00011204,2]
[404355277,1770073841680,-973.78998774,0.00011204,2]
[404355278,1770073841691,-1169.52451102,0.00011214,2]
[404355279,1770073841701,-20153.15,0.00011233,2]
[404355280,1770073841712,-341.63207322,0.00011309,2]
[404355281,1770073841722,-5234.64119348,0.00011349,2]
[404355282,1770073841731,-150.00840769,0.00011351,2]
[404355283,1770073841740,-500.0,0.00011479,2]
[404355284,1770073841749,-7113.0,0.00011589,2]
[404355285,1770073841759,-443.8,0.00011613,2]
[404355286,1770073841768,-500.0,0.00011644,2]
[404355287,1770073841777,-200.0,0.00011644,2]
[404355288,1770073841786,-200.0,0.00011644,2]
[404355289,1770073841795,-250.0,0.00011666,2]
[404355290,1770073841805,-160126.7925196,0.00011676,2]
[404355291,1770073841814,-230.16041742,0.00011711,2]
[404355292,1770073841824,-187.78006525,0.00011711,2]
[404355293,1770073841833,-1536.04360649,0.00011711,2]
[404355294,1770073841843,-225.18697532,0.00011711,2]
[404355295,1770073841853,-823.0,0.0001175,2]
[404355296,1770073841862,-3292.0,0.0001175,2]
[404355297,1770073841872,-500.0,0.00011752,2]
[404355298,1770073841882,-1500.0,0.00011752,2]
[404355299,1770073841891,-1617.53493796,0.00011765,2]
[404355300,1770073841901,-160.29771235,0.00011765,2]
[404355301,1770073841910,-13561.34,0.00011809,2]
[404355302,1770073841920,-4599.04,0.00011846,2]
[404355303,1770073841929,-736.0,0.00011883,2]
[404355304,1770073841938,-472.0,0.00011883,2]
[404355305,1770073841947,-500.0,0.0001189,2]
[404355306,1770073841956,-1230.7366716,0.000119,2]
[404355307,1770073841965,-22143.482067,0.0001191,2]
[404355308,1770073841974,-334.5472959,0.00011984,2]
[404355309,1770073841983,-200.0,0.00012,2]
[404355310,1770073841994,-200.0,0.00012016,2]
[404355311,1770073842004,-200.0,0.00012016,2]
[404355312,1770073842015,-52351.12,0.00012055,2]
[404355313,1770073842025,-151.0,0.00012073,2]
[404355314,1770073842036,-443.8,0.00012078,2]
[404355315,1770073842046,-200.0,0.0001212,2]
[404355316,1770073842056,-200.0,0.00012136,2]
[404355317,1770073842065,-200.0,0.00012136,2]
[404355318,1770073842075,-500.0,0.00012192,2]
[404355319,1770073842085,-200.0,0.00012192,2]
[404355320,1770073842096,-200.0,0.00012192,2]
[404355321,1770073842107,-200.0,0.00012241,2]
[404355322,1770073842118,-500.0,0.00012247,2]
[404355323,1770073842128,-200.0,0.00012258,2]
[404355324,1770073842138,-200.0,0.00012258,2]
[404355325,1770073842152,-194.72792766,0.00012259,2]
[404355326,1770073842162,-1592.87721993,0.00012259,2]
[404355327,1770073842171,-233.51889341,0.00012259,2]
[404355328,1770073842182,-200.0,0.00012364,2]
[404355329,1770073842192,-200.0,0.0001238,2]
[404355330,1770073842202,-200.0,0.0001238,2]
[404355331,1770073842211,-200.0,0.00012487,2]
[404355332,1770073842220,-200.0,0.00012504,2]
[404355333,1770073842230,-200.0,0.00012504,2]
[404355334,1770073842241,-443.8,0.00012542,2]
[404355335,1770073842252,-5234.64119348,0.00012659,2]
[404355336,1770073842262,-150.00840769,0.00012702,2]
[404355337,1770073842272,-500.0,0.0001274,2]
[404355338,1770073842282,-200.0,0.0001274,2]
[404355339,1770073842291,-200.0,0.0001274,2]
[404355340,1770073842300,-561.84544368,0.00012799,2]
[404355341,1770073842310,-1482.71901512,0.00012799,2]
[404355342,1770073842319,-2615.69209498,0.00012799,2]
[404355343,1770073842328,-201.93286099,0.00012807,2]
[404355344,1770073842338,-1651.81367706,0.00012807,2]
[404355345,1770073842348,-242.15909246,0.00012807,2]
[404355346,1770073842359,-270.94,0.00012877,2]
[404355347,1770073842369,-1152.0,0.00012925,2]
[404355348,1770073842379,-4609.0,0.00012925,2]
[404355349,1770073842389,-500.0,0.00013014,2]
[404355350,1770073842403,-160126.7925196,0.0001305,2]
[404355351,1770073842414,-1252.0,0.00013071,2]
[404355352,1770073842424,-500.0,0.00013288,2]
[404355353,1770073842433,-200.0,0.00013288,2]
[404355354,1770073842443,-200.0,0.00013288,2]
[404355355,1770073842452,-22143.482067,0.00013312,2]
[404355356,1770073842461,-20615.33467715,0.00013315,2]
[404355357,1770073842474,-319.0,0.00013342,2]
[404355358,1770073842483,-343.33,0.00013345,2]
[404355359,1770073842493,-346.92554585,0.00013353,2]
[404355360,1770073842503,-747.8093786,0.00013354,2]
[404355361,1770073842513,-599.60298507,0.00013354,2]
[404355362,1770073842522,-209.40437684,0.00013355,2]
[404355363,1770073842532,-1712.93078312,0.00013355,2]
[404355364,1770073842541,-251.11897888,0.00013355,2]
[404355365,1770073842551,-3240.0,0.00013425,2]
[404355366,1770073842561,-167.02189,0.00013496,2]
[404355367,1770073842571,-167.02189,0.00013496,2]
[404355368,1770073842580,-167.02189,0.00013496,2]
[404355369,1770073842590,-167.02189,0.00013496,2]
[404355370,1770073842599,-2289.027838,0.00013496,2]
[404355371,1770073842609,-151.0,0.00013496,2]
[404355372,1770073842619,-151.0,0.00013496,2]
[404355373,1770073842629,-2289.027838,0.00013496,2]
[404355374,1770073842639,-634.026843,0.00013496,2]
[404355375,1770073842651,-151.0,0.00013496,2]
[404355376,1770073842661,-2289.027838,0.00013496,2]
[404355377,1770073842671,-151.0,0.00013496,2]
[404355378,1770073842680,-634.026843,0.00013496,2]
[404355379,1770073842690,-634.026843,0.00013496,2]
[404355380,1770073842700,-2289.027838,0.00013496,2]
[404355381,1770073842709,-634.026843,0.00013496,2]
[404355382,1770073842719,-151.0,0.0001359,2]
[404355383,1770073842728,-1169.52451102,0.00013598,2]
[404355384,1770073842738,-500.0,0.00013698,2]
[404355385,1770073842747,-500.0,0.00013698,2]
[404355386,1770073842756,-500.0,0.00013698,2]
[404355387,1770073842765,-500.0,0.00013698,2]
[404355388,1770073842774,-394.52625559,0.00013698,2]
[404355389,1770073842783,-500.0,0.00013698,2]
[404355390,1770073842793,-500.0,0.00013698,2]
[404355391,1770073842802,-500.0,0.00013698,2]
[404355392,1770073842812,-500.0,0.00013698,2]
[404355393,1770073842822,-500.0,0.00013698,2]
[404355394,1770073842831,-500.0,0.00013698,2]
[404355395,1770073842839,-500.0,0.00013698,2]
[404355396,1770073842848,-500.0,0.00013698,2]
[404355397,1770073842858,-500.0,0.00013698,2]
[404355398,1770073842867,-500.0,0.00013698,2]
[404355399,1770073842876,-500.0,0.00013698,2]
[404355400,1770073842885,-500.0,0.00013698,2]
[404355401,1770073842895,-500.0,0.00013698,2]
[404355402,1770073842904,-500.0,0.00013698,2]
[404355403,1770073842914,-500.0,0.00013698,2]
[404355404,1770073842924,-500.0,0.00013698,2]
[404355405,1770073842934,-408.83165373,0.00013698,2]
[404355406,1770073842947,-700.51,0.00013698,2]
[404355407,1770073842958,-700.51,0.00013698,2]
[404355408,1770073842968,-700.51,0.00013698,2]
[404355409,1770073842979,-700.51,0.00013698,2]
[404355410,1770073842989,-700.51,0.00013698,2]
[404355411,1770073842998,-700.51,0.00013698,2]
[404355412,1770073843007,-700.51,0.00013698,2]
[404355413,1770073843017,-700.51,0.00013698,2]
[404355414,1770073843026,-700.51,0.00013698,2]
[404355415,1770073843036,-700.51,0.00013698,2]
[404355416,1770073843046,-700.51,0.00013698,2]
[404355417,1770073843056,-700.51,0.00013698,2]
[404355418,1770073843067,-700.51,0.00013698,2]
[404355419,1770073843076,-700.51,0.00013698,2]
[404355420,1770073843086,-700.51,0.00013698,2]
[404355421,1770073843096,-700.51,0.00013698,2]
[404355422,1770073843108,-700.51,0.00013698,2]
[404355424,1770073843120,-700.51,0.00013698,2]
[404355426,1770073843130,-700.51,0.00013698,2]
[404355428,1770073843139,-700.51,0.00013698,2]
[404355430,1770073843148,-700.51,0.00013698,2]
[404355432,1770073843158,-700.51,0.00013698,2]
[404355434,1770073843167,-700.51,0.00013698,2]
[404355436,1770073843176,-700.52484432,0.00013698,2]
[404355437,1770073843186,-520.9392261,0.00013698,2]
[404355438,1770073843195,-500.0,0.00013698,2]
[404355439,1770073843205,-500.0,0.00013698,2]
[404355440,1770073843214,-500.0,0.00013698,2]
[404355441,1770073843223,-500.0,0.00013698,2]
[404355442,1770073843232,-500.0,0.00013698,2]
[404355443,1770073843242,-500.0,0.00013698,2]
[404355444,1770073843251,-500.0,0.00013698,2]
[404355445,1770073843260,-500.0,0.00013698,2]
[404355446,1770073843269,-500.0,0.00013698,2]
[404355447,1770073843278,-500.0,0.00013698,2]
[404355448,1770073843287,-500.0,0.00013698,2]
[404355449,1770073843297,-500.0,0.00013698,2]
[404355450,1770073843306,-500.0,0.00013698,2]
[404355451,1770073843315,-500.0,0.00013698,2]
[404355452,1770073843324,-500.0,0.00013698,2]
[404355453,1770073843334,-324.98118221,0.00013698,2]
[404355454,1770073843343,-500.0,0.00013698,2]
[404355455,1770073843353,-500.0,0.00013698,2]
[404355456,1770073843361,-500.0,0.00013698,2]
[404355457,1770073843371,-500.0,0.00013698,2]
[404355458,1770073843380,-500.0,0.00013698,2]
[404355459,1770073843391,-500.0,0.00013698,2]
[404355460,1770073843405,-613.19482535,0.00013698,2]
[404355461,1770073843414,-635.64,0.00013698,2]
[404355462,1770073843424,-635.64,0.00013698,2]
[404355463,1770073843435,-635.64,0.00013698,2]
[404355464,1770073843444,-635.64,0.00013698,2]
[404355465,1770073843454,-635.64,0.00013698,2]
[404355466,1770073843463,-635.64,0.00013698,2]
[404355467,1770073843473,-635.64,0.00013698,2]
[404355468,1770073843483,-635.64,0.00013698,2]
[404355469,1770073843492,-635.64,0.00013698,2]
[404355470,1770073843502,-635.64,0.00013698,2]
[404355471,1770073843511,-635.64,0.00013698,2]
[404355472,1770073843520,-635.64,0.00013698,2]
[404355473,1770073843530,-500.0,0.00013698,2]
[404355474,1770073843539,-635.64,0.00013698,2]
[404355475,1770073843549,-500.0,0.00013698,2]
[404355476,1770073843559,-635.64,0.00013698,2]
[404355477,1770073843569,-500.0,0.00013698,2]
[404355478,1770073843578,-635.64,0.00013698,2]
[404355479,1770073843587,-500.0,0.00013698,2]
[404355480,1770073843596,-635.64,0.00013698,2]
[404355481,1770073843606,-500.0,0.00013698,2]
[404355482,1770073843615,-635.64,0.00013698,2]
[404355483,1770073843624,-500.0,0.00013698,2]
[404355484,1770073843633,-635.64,0.00013698,2]
[404355485,1770073843642,-500.0,0.00013698,2]
[404355486,1770073843651,-635.64,0.00013698,2]
[404355487,1770073843660,-500.0,0.00013698,2]
[404355488,1770073843669,-635.64,0.00013698,2]
[404355489,1770073843678,-500.0,0.00013698,2]
[404355490,1770073843687,-635.64,0.00013698,2]
[404355491,1770073843697,-500.0,0.00013698,2]
[404355492,1770073843707,-635.64,0.00013698,2]
[404355493,1770073843716,-239.79549484,0.00013698,2]
[404355494,1770073843725,-635.64,0.00013698,2]
[404355495,1770073843734,-635.83897736,0.00013698,2]
[404355496,1770073843743,-811.57,0.00013698,2]
[404355497,1770073843752,-811.57,0.00013698,2]
[404355498,1770073843762,-811.57,0.00013698,2]
[404355499,1770073843771,-811.57,0.00013698,2]
[404355500,1770073843780,-811.57,0.00013698,2]
[404355501,1770073843789,-811.57,0.00013698,2]
[404355502,1770073843797,-811.57,0.00013698,2]
[404355503,1770073843807,-811.57,0.00013698,2]
[404355504,1770073843816,-811.57,0.00013698,2]
[404355505,1770073843825,-500.0,0.00013698,2]
[404355506,1770073843834,-811.57,0.00013698,2]
[404355507,1770073843843,-500.0,0.00013698,2]
[404355508,1770073843852,-811.57,0.00013698,2]
[404355509,1770073843860,-500.0,0.00013698,2]
[404355510,1770073843869,-811.57,0.00013698,2]
[404355511,1770073843879,-500.0,0.00013698,2]
[404355512,1770073843888,-811.57,0.00013698,2]
[404355513,1770073843897,-500.0,0.00013698,2]
[404355514,1770073843907,-500.0,0.00013698,2]
[404355515,1770073843916,-811.57,0.00013698,2]
[404355516,1770073843926,-500.0,0.00013698,2]
[404355517,1770073843935,-811.57,0.00013698,2]
[404355518,1770073843944,-500.0,0.00013698,2]
[404355519,1770073843953,-500.0,0.00013698,2]
[404355520,1770073843963,-811.57,0.00013698,2]
[404355521,1770073843972,-500.0,0.00013698,2]
[404355522,1770073843981,-811.57,0.00013698,2]
[404355523,1770073843990,-500.0,0.00013698,2]
[404355524,1770073844000,-811.57,0.00013698,2]
[404355525,1770073844009,-453.81105922,0.00013698,2]
[404355526,1770073844019,-811.57,0.00013698,2]
[404355527,1770073844028,-811.57,0.00013698,2]
[404355528,1770073844038,-811.57,0.00013698,2]
[404355529,1770073844047,-811.57,0.00013698,2]
[404355530,1770073844056,-811.57,0.00013698,2]
[404355531,1770073844065,-811.60997295,0.00013698,2]
[404355532,1770073844075,-500.0,0.00013698,2]
[404355533,1770073844084,-500.0,0.00013698,2]
[404355534,1770073844094,-500.0,0.00013698,2]
[404355535,1770073844104,-500.0,0.00013698,2]
[404355536,1770073844113,-500.0,0.00013698,2]
[404355537,1770073844122,-500.0,0.00013698,2]
[404355538,1770073844131,-510.82232822,0.00013698,2]
[404355539,1770073844140,-500.0,0.00013698,2]
[404355540,1770073844323,-500.0,0.00013698,2]
[404355542,1770073844333,-500.0,0.00013698,2]
[404355543,1770073844343,-500.0,0.00013698,2]
[404355544,1770073844352,-500.0,0.00013698,2]
[404355545,1770073844362,-296.70673574,0.00013698,2]
[404355546,1770073844371,-500.0,0.00013698,2]
[404355547,1770073844381,-500.0,0.00013698,2]
[404355548,1770073844391,-500.0,0.00013698,2]
[404355549,1770073844403,-500.0,0.00013698,2]
[404355550,1770073844414,-500.0,0.00013698,2]
[404355551,1770073844425,-500.0,0.00013698,2]
[404355552,1770073844436,-500.0,0.00013698,2]
[404355553,1770073844446,-500.0,0.00013698,2]
[404355554,1770073844455,-500.0,0.00013698,2]
[404355556,1770073844467,-500.0,0.00013698,2]
[404355557,1770073844478,-500.0,0.00013698,2]
[404355558,1770073844488,-500.0,0.00013698,2]
[404355559,1770073844498,-500.0,0.00013698,2]
[404355560,1770073844507,-500.0,0.00013698,2]
[404355561,1770073844516,-500.0,0.00013698,2]
[404355562,1770073844526,-500.0,0.00013698,2]
[404355563,1770073844535,-500.0,0.00013698,2]
[404355564,1770073844545,-500.0,0.00013698,2]
[404355565,1770073844554,-500.0,0.00013698,2]
[404355566,1770073844564,-317.29293236,0.00013698,2]
[404355567,1770073844575,-500.0,0.00013698,2]
[404355568,1770073844584,-500.0,0.00013698,2]
[404355569,1770073844593,-500.0,0.00013698,2]
[404355570,1770073844603,-500.0,0.00013698,2]
[404355571,1770073844612,-500.0,0.00013698,2]
[404355572,1770073844621,-500.0,0.00013698,2]
[404355573,1770073844630,-500.0,0.00013698,2]
[404355574,1770073844639,-500.0,0.00013698,2]
[404355575,1770073844648,-500.0,0.00013698,2]
[404355576,1770073844657,-500.0,0.00013698,2]
[404355577,1770073844667,-500.0,0.00013698,2]
[404355578,1770073844676,-500.0,0.00013698,2]
[404355579,1770073844685,-500.0,0.00013698,2]
[404355580,1770073844694,-500.0,0.00013698,2]
[404355581,1770073844704,-500.0,0.00013698,2]
[404355582,1770073844713,-500.0,0.00013698,2]
[404355583,1770073844722,-846.12,0.00013698,2]
[404355584,1770073844731,-500.0,0.00013698,2]
[404355585,1770073844740,-846.12,0.00013698,2]
[404355586,1770073844750,-500.0,0.00013698,2]
[404355587,1770073844759,-846.12,0.00013698,2]
[404355588,1770073844768,-500.0,0.00013698,2]
[404355589,1770073844777,-846.12,0.00013698,2]
[404355590,1770073844787,-500.0,0.00013698,2]
[404355591,1770073844796,-846.12,0.00013698,2]
[404355592,1770073844805,-500.0,0.00013698,2]
[404355593,1770073844814,-846.12,0.00013698,2]
[404355594,1770073844824,-500.0,0.00013698,2]
[404355595,1770073844834,-846.12,0.00013698,2]
[404355596,1770073844843,-224.99954883,0.00013698,2]
[404355597,1770073844853,-846.12,0.00013698,2]
[404355598,1770073844863,-846.12,0.00013698,2]
[404355599,1770073844874,-846.12,0.00013698,2]
[404355600,1770073844883,-846.12,0.00013698,2]
[404355601,1770073844892,-846.12,0.00013698,2]
[404355602,1770073844901,-846.12,0.00013698,2]
[404355603,1770073844911,-846.12,0.00013698,2]
[404355604,1770073844920,-846.12,0.00013698,2]
[404355605,1770073844929,-846.12,0.00013698,2]
[404355606,1770073844941,-846.12,0.00013698,2]
[404355607,1770073844951,-846.12,0.00013698,2]
[404355608,1770073844960,-846.12,0.00013698,2]
[404355609,1770073844970,-846.12,0.00013698,2]
[404355610,1770073844981,-846.12,0.00013698,2]
[404355611,1770073844990,-846.12,0.00013698,2]
[404355612,1770073845000,-846.12,0.00013698,2]
[404355613,1770073845010,-846.2298754,0.00013698,2]
[404355614,1770073845020,-649.78,0.00013698,2]
[404355615,1770073845031,-649.78,0.00013698,2]
[404355616,1770073845040,-649.78,0.00013698,2]
[404355617,1770073845050,-649.78,0.00013698,2]
[404355618,1770073845059,-649.78,0.00013698,2]
[404355619,1770073845068,-649.78,0.00013698,2]
[404355620,1770073845077,-649.78,0.00013698,2]
[404355621,1770073845087,-649.78,0.00013698,2]
[404355622,1770073845097,-649.78,0.00013698,2]
[404355623,1770073845107,-649.78,0.00013698,2]
[404355624,1770073845116,-649.78,0.00013698,2]
[404355625,1770073845125,-649.78,0.00013698,2]
[404355626,1770073845136,-649.78,0.00013698,2]
[404355627,1770073845146,-649.78,0.00013698,2]
[404355628,1770073845157,-649.78,0.00013698,2]
[404355629,1770073845168,-649.78,0.00013698,2]
[404355630,1770073845179,-649.78,0.00013698,2]
[404355631,1770073845188,-649.78,0.00013698,2]
[404355632,1770073845198,-649.78,0.00013698,2]
[404355633,1770073845208,-649.78,0.00013698,2]
[404355634,1770073845218,-649.78,0.00013698,2]
[404355635,1770073845229,-649.78,0.00013698,2]
[404355636,1770073845238,-649.78,0.00013698,2]
[404355637,1770073845247,-649.95670735,0.00013698,2]
[404355638,1770073845256,-554.70150285,0.00013698,2]
[404355639,1770073845266,-500.0,0.00013698,2]
[404355640,1770073845278,-500.0,0.00013698,2]
[404355641,1770073845288,-500.0,0.00013698,2]
[404355642,1770073845297,-500.0,0.00013698,2]
[404355643,1770073845307,-500.0,0.00013698,2]
[404355644,1770073845317,-500.0,0.00013698,2]
[404355645,1770073845326,-500.0,0.00013698,2]
[404355646,1770073845336,-500.0,0.00013698,2]
[404355647,1770073845345,-500.0,0.00013698,2]
[404355648,1770073845354,-500.0,0.00013698,2]
[404355649,1770073845364,-500.0,0.00013698,2]
[404355650,1770073845373,-431.16604066,0.00013698,2]
[404355651,1770073845383,-500.0,0.00013698,2]
[404355652,1770073845394,-500.0,0.00013698,2]
[404355653,1770073845406,-500.0,0.00013698,2]
[404355654,1770073845416,-500.0,0.00013698,2]
[404355655,1770073845427,-500.0,0.00013698,2]
[404355656,1770073845437,-500.0,0.00013698,2]
[404355657,1770073845446,-500.0,0.00013698,2]
[404355658,1770073845456,-500.0,0.00013698,2]
[404355659,1770073845465,-500.0,0.00013698,2]
[404355660,1770073845477,-500.0,0.00013698,2]
[404355661,1770073845487,-378.11080496,0.00013698,2]
[404355662,1770073845499,-1675.29,0.00013698,2]
[404355663,1770073845509,-1675.29,0.00013698,2]
[404355664,1770073845519,-1675.29,0.00013698,2]
[404355665,1770073845529,-1675.29,0.00013698,2]
[404355666,1770073845538,-1675.29,0.00013698,2]
[404355667,1770073845548,-1675.29,0.00013698,2]
[404355668,1770073845557,-1675.29,0.00013698,2]
[404355669,1770073845567,-1675.29,0.00013698,2]
[404355670,1770073845576,-1675.29,0.00013698,2]
[404355671,1770073845585,-1675.29,0.00013698,2]
[404355672,1770073845594,-1675.29,0.00013698,2]
[404355673,1770073845604,-1675.29,0.00013698,2]
[404355674,1770073845613,-1675.29,0.00013698,2]
[404355675,1770073845623,-1675.29,0.00013698,2]
[404355676,1770073845633,-1675.29,0.00013698,2]
[404355677,1770073845642,-1675.29,0.00013698,2]
[404355678,1770073845651,-1675.29,0.00013698,2]
[404355679,1770073845660,-1675.29,0.00013698,2]
[404355680,1770073845670,-1675.29,0.00013698,2]
[404355681,1770073845679,-1675.29,0.00013698,2]
[404355682,1770073845688,-1675.29,0.00013698,2]
[404355683,1770073845697,-1675.29,0.00013698,2]
[404355684,1770073845706,-1675.29,0.00013698,2]
[404355685,1770073845715,-1675.46797138,0.00013698,2]
[404355686,1770073845724,-500.0,0.00013698,2]
[404355687,1770073845733,-500.0,0.00013698,2]
[404355688,1770073845742,-500.0,0.00013698,2]
[404355689,1770073845752,-500.0,0.00013698,2]
[404355690,1770073845761,-500.0,0.00013698,2]
[404355691,1770073845770,-500.0,0.00013698,2]
[404355692,1770073845780,-500.0,0.00013698,2]
[404355693,1770073845789,-500.0,0.00013698,2]
[404355694,1770073845798,-440.6625364,0.00013698,2]
[404355695,1770073845807,-500.0,0.00013698,2]
[404355696,1770073845817,-500.0,0.00013698,2]
[404355697,1770073845827,-500.0,0.00013698,2]
[404355698,1770073845836,-500.0,0.00013698,2]
[404355699,1770073845846,-500.0,0.00013698,2]
[404355700,1770073845855,-500.0,0.00013698,2]
[404355701,1770073845865,-500.0,0.00013698,2]
[404355702,1770073845874,-500.0,0.00013698,2]
[404355703,1770073845883,-345.2209737,0.00013698,2]
[404355704,1770073845892,-151.0,0.00013698,2]
[404355705,1770073845902,-1540.59,0.00013698,2]
[404355706,1770073845912,-1540.59,0.00013698,2]
[404355707,1770073845921,-1540.59,0.00013698,2]
[404355708,1770073845930,-1540.59,0.00013698,2]
[404355709,1770073845939,-1540.59,0.00013698,2]
[404355710,1770073845949,-1540.59,0.00013698,2]
[404355711,1770073845958,-1540.59,0.00013698,2]
[404355712,1770073845967,-1540.59,0.00013698,2]
[404355713,1770073845976,-1540.59,0.00013698,2]
[404355714,1770073845986,-1540.59,0.00013698,2]
[404355715,1770073845996,-1540.59,0.00013698,2]
[404355716,1770073846005,-1540.59,0.00013698,2]
[404355717,1770073846014,-1540.59,0.00013698,2]
[404355718,1770073846025,-1540.59,0.00013698,2]
[404355719,1770073846034,-1540.59,0.00013698,2]
[404355720,1770073846043,-1540.59,0.00013698,2]